Cogmind - Beta 16.1 *** ADVENTURER MODE // 2026.02.16 @ 09:56:03 Player: Mbreton Result: Destroyed self with Rocket Launcher Performance ------------- Evolutions (1) 500 Regions Visited (3) 600 Robots Destroyed (33) 165 Value Destroyed (869) 869 Prototype IDs (1) 20 Alien Tech Used (0) 0 Bonus (236) 236 TOTAL SCORE: 2390 Bonus ------- Pacifist 200 High Alert Combat Kills 11 Follower Combat Kills 25 Cogmind --------- Core Integrity 0/400 Matter 188/300 Energy 125/125 System Corruption 4% Temperature Cool (0) Movement Hovering (150) Ox1 Location -9/Mines Parts ------- > --- POWER (1) -------- Light Ion Engine > --- PROPULSION (3) --- Combat Airjet > --- UTILITY (3) ------ Medium Storage Unit Experimental Sensor Array Light Armor Plating > --- WEAPON (2) ------- Rocket Launcher Mini Grenade Launcher > --- INVENTORY (10) --- Medium Storage Unit Compact Matter Pod (150) ECM Suite Light Armor Plating Light Armor Plating Beam Rifle Assault Rifle Peak State ------------ > --- POWER ------------ Light Nuclear Core > --- PROPULSION ------- Aluminum Leg Aluminum Leg Improved Aluminum Leg > --- UTILITY ---------- Medium Storage Unit Visual Processing Unit Experimental Sensor Array > --- WEAPON ----------- Medium Laser Assault Rifle > --- INVENTORY -------- Light Ion Engine Medium Storage Unit Compact Matter Pod ECM Suite Light Armor Plating Light Armor Plating Beam Rifle Grenade Launcher Mini Grenade Launcher Mining Claw [Rating: 22] Favorites ----------- Power Ion Engine Engine Ion Engine Power Core Light Nuclear Core Propulsion Aluminum Leg Leg Aluminum Leg Hover Unit Combat Airjet Utility Medium Storage Unit Device Experimental Sensor Array Storage Medium Storage Unit Processor Visual Processing Unit Protection Light Armor Plating Weapon Medium Laser Energy Gun Medium Laser Ballistic Gun Assault Rifle Ballistic Cannon Light Cannon Launcher Mini Grenade Launcher Build | -11 -10 -9 -9 ------- Run | Yrd Mat Mat Min Slots Evolved 2 | . . 2 . Power . | . . . . Propulsion 1 | . . 1 . Utility 1 | . . 1 . Weapon . | . . . . Parts Attached 22 | 6 2 8 6 Power 4 | 1 . 2 1 Engine 3 | 1 . 1 1 Core 1 | . . 1 . Reactor . | . . . . Propulsion 5 | 2 . 2 1 Treads . | . . . . Leg 4 | 2 . 2 . Wheel . | . . . . Hover 1 | . . . 1 Flight . | . . . . Utility 6 | 1 1 2 2 Device 1 | . . . 1 Storage 2 | 1 1 . . Processor 1 | . . 1 . Hackware . | . . . . Protection 2 | . . 1 1 Artifact . | . . . . Weapon 7 | 2 1 2 2 Energy Gun 2 | 1 . . 1 Energy Cannon . | . . . . Ballistic Gun 1 | 1 . . . Ballistic Cannon 1 | . . 1 . Launcher 3 | . 1 1 1 Special Weapon . | . . . . Impact Weapon . | . . . . Slashing Weapon . | . . . . Piercing Weapon . | . . . . Special Melee Weapon . | . . . . Unidentified Prototypes 1 | . . . 1 Parts Lost 7 | . . 1 6 Power 2 | . . 1 1 Propulsion 3 | . . . 3 Utility 1 | . . . 1 Weapon 1 | . . . 1 Highest Loss Streak 6 | . . 1 6 To Critical Strikes . | . . . . Average Backups 6 | 1 3 7 8 Power . | . 1 . . Propulsion . | . . . . Utility 3 | . 1 3 4 Weapon 2 | . 1 3 3 Tool/Special . | . . . . Unused Backups 5 | . . . 5 Power . | . . . . Propulsion . | . . . . Utility 4 | . . . 4 Weapon 1 | . . . 1 Tool/Special . | . . . . Average Slot Usage (%) 82 | . 85 77 86 Engine 8 | . 14 9 4 Core 2 | . . 1 5 Leg 21 | . 28 23 17 Hover 1 | . . . 4 Device 2 | . . . 7 Storage 11 | . 14 11 11 Processor 6 | . . 9 5 Protection 3 | . . . 9 Energy Gun 11 | . 14 11 9 Ballistic Gun 8 | . 14 6 7 Ballistic Cannon 1 | . . 2 . Launcher 2 | . . 2 4 Peak Build Rating 22 | 6 7 14 22 Average Rating 11 | 3 6 8 18 On Entrance 6 | . 6 6 14 Avg Prop Armor Cover (%) . | . . . . Naked Turns . | . . . . Heaviest Build 22 | 14 19 22 22 Greatest Support 33 | 20 20 33 33 Greatest Overweight (x) 6 | . . . 6 Average Overweight (x) . | . . . . Largest Inventory Capacity 10 | 8 10 10 10 Average Capacity 9 | 5 9 10 10 Most Carried 10 | 3 5 10 10 Average Carried 6 | . 3 7 8 Final Capacity 10 | 8 10 10 10 Final Carried 9 | 1 5 9 7 Class Distribution -------------------- 87% | Mutant 12% | Scavenger-Mutant Dominant Class ---------------- Mutant | -10/Materials Mutant | -9/Materials Mutant | -9/Mines Resources | -11 -10 -9 -9 ----------- Run | Yrd Mat Mat Min Matter Collected 672 | 177 11 398 86 Remotely . | . . . . Salvage Created 861 | . . 672 189 Parts 56 | . . 47 9 Haulers Intercepted . | . . . . Recyclers Shooed 1 | . . 1 . Parts Field Recycled . | . . . . Retrieved Matter . | . . . . Parts Self-Destructed . | . . . . Prevented . | . . . . Parts Restored . | . . . . Kills | -11 -10 -9 -9 ------- Run | Yrd Mat Mat Min Combat Hostiles Destroyed 29 | . . 21 8 Guns 12 | . . 8 4 Cannons 2 | . . 2 . AOE 15 | . . 11 4 Classes Destroyed 9 | . . 7 2 Recycler 1 | . . 1 . Mechanic 1 | . . 1 . Operator 1 | . . 1 . Watcher 2 | . . 2 . Swarmer 13 | . . 10 3 Grunt 8 | . . 6 2 Sentry 5 | . . 5 . Demolisher 2 | . . . 2 Assembled 1 | . . . 1 Best Kill Streak 8 | . . 8 3 Combat Bots Only 5 | . . 5 3 Max Kills in Single Turn 4 | . . 4 3 Gunslinging . | . . . . Exploded 4 | . . 4 3 Melee . | . . . . Uniques/NPCs Destroyed . | . . . . Combat | -11 -10 -9 -9 -------- Run | Yrd Mat Mat Min Hostile Shots Fired 85 | . 3 56 26 Missed 21 | . . 17 4 Hits 64 | . 3 39 22 Projectile 64 | . 3 39 22 AOE 17 | . . . 17 Critical Strikes 1 | . . 1 . Damage Taken 1477 | . 19 509 949 Core 412 | . 11 86 315 Absorbed by Shields . | . . . . Ignored by Resistances 334 | . 6 148 180 Core Remaining (%) 97 | 100 95 . . Volleys Fired 47 | . . 32 15 Largest 2 | . . 2 2 Hottest 80 | . . 80 80 Shots Fired 92 | . . 64 28 Gun 63 | . . 40 23 Cannon 12 | . . 12 . Launcher 17 | . . 12 5 Special . | . . . . Kinetic 30 | . . 20 10 Thermal 45 | . . 32 13 Explosive 17 | . . 12 5 Electromagnetic . | . . . . Robot Hit Streak 24 | . . 24 20 Robot Miss Streak 2 | . . 2 1 Penetration Max . | . . . . Secondary Targets . | . . . . Shots Hit Robots 74 | . . 53 21 Core Hits 54 | . . 39 15 Critical Kills . | . . . . Critical Parts Destroyed . | . . . . Critical Strikes 5 | . . 3 2 Burn 5 | . . 3 2 Melee Attacks . | . . . . Impact . | . . . . Slashing . | . . . . Piercing . | . . . . Sneak Attacks . | . . . . Combat Hostiles . | . . . . Follow-up Attacks . | . . . . Damage Inflicted 2003 | . . 1569 434 Guns 731 | . . 464 267 Cannons 162 | . . 162 . Explosions 1105 | . . 938 167 Melee . | . . . . Ramming 5 | . . 5 . Kinetic 352 | . . 248 104 Thermal 541 | . . 378 163 Explosive 1105 | . . 938 167 Electromagnetic . | . . . . Impact . | . . . . Slashing . | . . . . Piercing . | . . . . Highest Corruption 4 | . . . 4 Average Corruption 4 | . . . 4 Corruption Purged . | . . . . Corruption Blocked . | . . . . Effects 5 | . . . 5 Message Errors 1 | . . . 1 Matter Fused 2 | . . . 2 Energy Discharges 1 | . . . 1 Data Loss (minor) 1 | . . . 1 Overload Shots . | . . . . Overflow Damage 24 | . . 24 . Projectiles . | . . . . Explosions 24 | . . 24 . Melee . | . . . . Knockbacks 1 | . . 1 . Impact . | . . . . Kinetic 1 | . . 1 . Secondary . | . . . . Self-Inflicted Damage 172 | . . 120 52 Shots 9 | . . 6 3 Rammed . | . . . . Targets Rammed 1 | . . 1 . Kicked 1 | . . 1 . Crushed . | . . . . Highest Temperature 97 | . . 97 48 Average Temperature 26 | . . 28 16 Received Heat Transfer 219 | . . 219 . Siege Activations . | . . . . Martial Activations . | . . . . Shielding Activations . | . . . . Robots Disrupted . | . . . . Combat Hostiles . | . . . . Robots Corrupted . | . . . . Combat Hostiles . | . . . . Parts Fried . | . . . . Impact Corruptions . | . . . . Robots Melted . | . . . . Combat Hostiles . | . . . . Parts Melted 3 | . . 2 1 Heat Transferred 1924 | . . 1332 592 Parts Sabotaged . | . . . . Parts Stolen . | . . . . Parts Stripped . | . . . . Power Chain Reactions . | . . . . Alert | -11 -10 -9 -9 ------- Run | Yrd Mat Mat Min Maximum Alert Level 2 | . . 2 1 Low Security (%) 58 | 100 100 28 62 Level 1 37 | . . 60 37 Level 2 4 | . . 10 . Level 3 . | . . . . Level 4 . | . . . . Level 5 . | . . . . High Security . | . . . . Max Security . | . . . . Peak Influence 432 | . 10 432 262 Initial 132 | . . . 132 Average 147 | . . 229 157 Influence Increases 925 | . 17 652 256 Destroy 0b10 Robot/C 580 | . . 420 160 Destroy 0b10 Robot/NC 25 | . . 25 . Destroy Leader 134 | . . 104 30 Trap Triggered on 0b10 10 | . 10 . . Successful Hack 16 | . 7 9 . Disable Machine 27 | . . 18 9 Destroy Structure 118 | . . 76 42 Lose Combat Pursuer 15 | . . . 15 Influence Decreases 867 | . 17 250 600 Entered New Map 270 | . . . 270 Time Decay 507 | . 17 240 250 Lost Part 70 | . . 10 60 Lost Ally 20 | . . . 20 Squads Dispatched 1 | . 1 . . Investigation 1 | . 1 . . Extermination . | . . . . Reinforcement . | . . . . Assault . | . . . . Garrison . | . . . . Intercept . | . . . . Searches Triggered . | . . . . Construction Impeded . | . . . . Haulers Reinforced . | . . . . Active Scanning Responses . | . . . . Cargo Convoy Interrupts . | . . . . Stealth | -11 -10 -9 -9 --------- Run | Yrd Mat Mat Min Distress Signals 3 | . 1 2 . Communications Jammed . | . . . . Distress Signals . | . . . . Times Spotted 42 | . 3 28 11 Peak Tracking Total 7 | . 3 7 3 Tactical Retreats 1 | . . . 1 Traps | -11 -10 -9 -9 ------- Run | Yrd Mat Mat Min Traps Triggered . | . . . . Indirectly . | . . . . Trap Hack Attempts . | . . . . Triggered . | . . . . Disarmed . | . . . . Reprogrammed 1 | . 1 . . Reused 1 | . 1 . . Traps Extracted . | . . . . Installed . | . . . . Triggered 1 | . 1 . . Machines | -11 -10 -9 -9 ---------- Run | Yrd Mat Mat Min Machines Disabled 3 | . . 2 1 Max in Single Turn 1 | . . 1 1 Machines Repaired . | . . . . Machines Dismantled . | . . . . Machines Sabotaged . | . . . . Overloaded Fab Kills . | . . . . Hacking | -11 -10 -9 -9 --------- Run | Yrd Mat Mat Min Machines Accessed 6 | . 4 2 . Terminals 5 | . 4 1 . Fabricators . | . . . . Repair Stations . | . . . . Recycling Units 1 | . . 1 . Scanalyzers . | . . . . Garrison Access . | . . . . Total Hacks 10 | . 6 4 . Successful 7 | . 4 3 . Failed 3 | . 2 1 . Catastrophic . | . . . . Database Lockouts . | . . . . Manual . | . . . . Terminals 9 | . 6 3 . Fabricators . | . . . . Repair Stations . | . . . . Recycling Units 1 | . . 1 . Scanalyzers . | . . . . Garrison Access . | . . . . Terminal Hacks 6 | . 4 2 . Branch Access Points 1 | . . 1 . Emergency Access Points 1 | . 1 . . Locate Traps 1 | . . 1 . Reprogram Traps 1 | . 1 . . Recall Investigation 1 | . 1 . . Zone Layout 1 | . 1 . . Fabricator Hacks . | . . . . Repair Station Hacks . | . . . . Recycling Unit Hacks 1 | . . 1 . Retrieve Components 1 | . . 1 . Scanalyzer . | . . . . Garrison Access Hacks . | . . . . Unauthorized Hacks . | . . . . Terminals . | . . . . Fabricators . | . . . . Repair Stations . | . . . . Recycling Units . | . . . . Scanalyzers . | . . . . Garrison Access . | . . . . Data Cores Recovered . | . . . . Used . | . . . . Hacking Detections 4 | . 3 1 . Full Trace Events . | . . . . Feedback Events . | . . . . Feedback Blocked . | . . . . Robot Schematics Acquired . | . . . . Robots Built . | . . . . Authchips . | . . . . Time . | . . . . Total Robot Build Rating . | . . . . Part Schematics Acquired . | . . . . Parts Built . | . . . . Authchips . | . . . . Time . | . . . . Total Part Build Rating . | . . . . Part Studies Acquired . | . . . . Parts Repaired . | . . . . Time . | . . . . Parts Recycled . | . . . . Recycled Matter . | . . . . Retrieved Matter . | . . . . Retrieved Components 10 | . . 10 . Parts Scanalyzed . | . . . . Part Schematics Acquired . | . . . . Parts Damaged . | . . . . Bothacking | -11 -10 -9 -9 ------------ Run | Yrd Mat Mat Min Used RIF Installer . | . . . . Robots Hacked . | . . . . Non-combat . | . . . . Combat . | . . . . Robot Hacks Applied . | . . . . Relay Couplers Released . | . . . . Fabnet Peak Effective % . | . . . . Robots Rewired . | . . . . Allies Hacked . | . . . . Hacks Repelled . | . . . . Allies | -11 -10 -9 -9 -------- Run | Yrd Mat Mat Min Total Allies 1 | . . . 1 Largest Group 1 | . . . 1 Highest-Rated Group 31 | . . . 31 Highest-Rated Ally 31 | . . . 31 Total Orders . | . . . . Ally Attacks 11 | . . . 11 Total Damage 146 | . . . 146 Kills 1 | . . . 1 Allies Corrupted . | . . . . Allies Melted . | . . . . Intel | -11 -10 -9 -9 ------- Run | Yrd Mat Mat Min Active Infowar (turns) 988 | . . 479 509 Optics 731 | . . 479 252 Sensors 332 | . . . 332 Robot Analysis Total . | . . . . Derelict Logs Recovered 1 | . . . 1 Drone Launches . | . . . . Drone Recoveries . | . . . . Exploration | -11 -10 -9 -9 ------------- Run | Yrd Mat Mat Min Turns Passed 1359 | 68 259 523 509 Spaces Moved 889 | 53 204 325 307 Core 14 | 11 . . 3 Treads . | . . . . Legs 742 | 42 204 325 171 Wheels . | . . . . Hover 133 | . . . 133 Flight . | . . . . Fastest Speed 50 | 50 120 120 120 Average Speed 125 | 105 120 120 137 Slowest Speed 350 | 120 120 120 350 Overloaded Moves . | . . . . Propulsion Burnouts . | . . . . Robots Hopped . | . . . . Potential Cave-ins . | . . . . Cave-ins Triggered 1 | . . . 1 Exploration Rate (%) 32 | 4 41 31 54 Regions Visited 3 Branch Regions 1 Pre-discovered Areas . | . . . . Known Exits Taken 1 | . . 1 . Unknown Exits Taken 2 | 1 1 . . Scrap Searched 1 | . . . 1 Spaces Dug 27 | . . . 27 Terrain Destroyed 136 | . . 76 60 Melee . | . . . . Projectile . | . . . . AOE 136 | . . 76 60 Terrain Rammed . | . . . . Walls Destroyed . | . . . . Machines Disabled . | . . . . Actions | -11 -10 -9 -9 --------- Run | Yrd Mat Mat Min Total 1041 | 65 218 390 368 Wait 42 | . 5 9 28 Move 886 | 52 203 324 307 Hop . | . . . . Pick Up 24 | 7 5 7 5 Fast Attach 2 | . . 1 1 Attach 14 | 6 1 3 4 Detach 1 | . 1 . . Swap 17 | . 2 11 4 Drop 7 | . 1 2 4 Fire 47 | . . 32 15 Melee . | . . . . Ram . | . . . . Kick 1 | . . 1 . Crush . | . . . . Escape Stasis . | . . . . Rewire . | . . . . Trap . | . . . . Miscellaneous . | . . . . Route ------- -11/Scrapyard -10/Materials -9/Materials (discovered 2 exits: *Min x2) -9/Mines History --------- Turn | Location | Event 5 | -11/Scrapyard | Discovered new exit (range 16) 69 | -11/Scrapyard | Entered Materials 70 | -10/Materials | Met a group of wandering Federalists 233 | -10/Materials | Discovered new exit (range 16) 309 | -10/Materials | Build established: Mutant 328 | -10/Materials | Entered another Materials area 328 | -9/Materials | Evolved 2 slots: Propulsion x1, Utility x1 686 | -9/Materials | Identified exit to Mines 851 | -9/Materials | Entered Mines 854 | -9/Mines | Escorted by a lone wolf Derelict 1022 | -9/Mines | Received a Rocket Launcher from a helpful Derelict 1025 | -9/Mines | Found a damaged Exp. Sensor Array with a note attached 1028 | -9/Mines | Found Prototype Device 1028 | -9/Mines | Identified Exp. Sensor Array 1056 | -9/Mines | Assembled infested the area 1100 | -9/Mines | Core integrity fell below 50% 1103 | -9/Mines | Crushed by falling debris 1136 | -9/Mines | Core integrity fell below 20% 1162 | -9/Mines | Lost 6 parts (1p3n1u1w) 1190 | -9/Mines | Learned 8 Materials zone layouts 1360 | -9/Mines | Destroyed self with Rocket Launcher Last Messages --------------- The unstable cave ceiling collapses. D-53 Grenadier destroyed. System corrupted: Matter fused (-8). Aluminum Leg destroyed. The unstable cave ceiling collapses. Launcher Guidance Computer melted. D-53 Grenadier destroyed. The unstable cave ceiling collapses. Acquired Cmb. Airjet. The unstable cave ceiling collapses. T-07 Excavator is excavating. The unstable cave ceiling collapses. T-07 Excavator is excavating. Acquired derelict log, extracted data. Data stored: Materials zone layouts (x8). KAJV&JC:AWYYY#XE0NN&1APSFOM3=V